bitfinex-derivatives/quotes_BTCF0:USTF0_20250806
["timestamp","ask_amount","ask_price","bid_price","bid_amount"]
[1754505269558,0.67056,115600.0,115590.0,1.09758386]
[1754505270348,0.67056,115600.0,115590.0,1.52222164]
[1754505270560,0.66535,115600.0,115590.0,1.52222164]
[1754505270766,0.59948,115600.0,115590.0,1.52222164]
[1754505271962,0.62361,115600.0,115590.0,1.52222164]
[1754505272555,0.64011,115600.0,115590.0,1.52222164]
[1754505272753,0.64337,115600.0,115590.0,1.52222164]
[1754505273263,0.64011,115600.0,115590.0,1.52222164]
[1754505274461,0.64337,115600.0,115590.0,1.52222164]
[1754505276457,0.66535,115600.0,115590.0,1.52222164]
[1754505278368,0.59948,115600.0,115590.0,0.67294608]
[1754505278567,0.59948,115600.0,115590.0,1.52222164]
[1754505279565,0.62361,115600.0,115590.0,1.52222164]
[1754505280056,0.64337,115600.0,115590.0,1.52222164]
[1754505280663,0.64011,115600.0,115590.0,1.52222164]
[1754505280965,0.59948,115600.0,115590.0,1.52222164]
[1754505282968,2.44195708,115620.0,115610.0,1.07948208]
[1754505283969,2.44295708,115620.0,115610.0,1.07948208]
[1754505284365,1.24627708,115620.0,115610.0,1.07948208]
[1754505284869,1.24727708,115620.0,115610.0,1.07948208]
[1754505285271,1.27293955,115620.0,115610.0,1.07948208]
[1754505285973,1.27193955,115620.0,115610.0,1.07948208]
[1754505286166,1.31536955,115620.0,115610.0,1.07948208]
[1754505286570,1.31436955,115620.0,115610.0,1.07948208]
[1754505286776,1.14140025,115620.0,115610.0,1.07948208]
[1754505287372,1.31436985,115620.0,115610.0,1.07948208]
[1754505288071,1.31436985,115620.0,115610.0,0.6548443]
[1754505288276,1.31436985,115620.0,115610.0,1.07948208]
[1754505290579,0.88973207,115620.0,115610.0,1.07948208]
[1754505290774,1.31436985,115620.0,115610.0,1.07948208]
[1754505291377,1.14140025,115620.0,115610.0,1.07948208]
[1754505292678,1.31412985,115620.0,115610.0,1.07948208]
[1754505292878,1.14116025,115620.0,115610.0,1.07948208]
[1754505293180,0.71652247,115620.0,115610.0,1.07948208]
[1754505293477,1.14116025,115620.0,115610.0,1.07948208]
[1754505294179,1.31412975,115620.0,115610.0,1.07948208]
[1754505294477,1.31408975,115620.0,115610.0,1.07948208]
[1754505295780,1.14112025,115620.0,115610.0,1.07948208]
[1754505296080,1.31408975,115620.0,115610.0,1.07948208]
[1754505297680,1.31400975,115620.0,115610.0,1.07948208]
[1754505298583,1.07601025,115620.0,115610.0,1.07948208]
[1754505299081,1.11944025,115620.0,115610.0,1.07948208]
[1754505300284,1.29232985,115620.0,115610.0,1.07948208]
[1754505301285,1.31392985,115620.0,115610.0,1.07948208]
[1754505303087,1.31392985,115620.0,115610.0,0.6548443]
[1754505303286,1.31392985,115620.0,115610.0,1.07948208]
[1754505303691,1.31392985,115620.0,115610.0,0.6548443]
[1754505304192,1.73856763,115620.0,115610.0,0.3608]
[1754505304381,1.73856763,115620.0,115600.0,0.3608]
[1754505304382,0.2654045,115610.0,115600.0,0.3608]
[1754505304582,0.2654194,115600.0,115590.0,0.45324028]
[1754505304784,1.71285496,115600.0,115590.0,0.5338144]
[1754505304984,1.28821718,115600.0,115590.0,0.5338144]
[1754505305184,1.28821718,115600.0,115590.0,0.1730144]
[1754505305588,1.28821718,115600.0,115590.0,0.1750144]
[1754505305792,1.28821718,115600.0,115590.0,0.1997544]
[1754505308787,0.69007138,115590.0,115580.0,0.7846443]
[1754505309084,0.69007138,115590.0,115580.0,0.7866443]
[1754505309381,0.69007138,115590.0,115580.0,0.7876443]
[1754505310791,0.69007138,115590.0,115580.0,1.21228208]
[1754505311191,0.2654336,115590.0,115580.0,1.21228208]
[1754505311389,0.69007138,115590.0,115580.0,1.21228208]
[1754505311793,0.69007138,115590.0,115580.0,0.7876443]
[1754505311992,0.69007138,115590.0,115580.0,1.21228208]
[1754505313593,0.69007138,115590.0,115580.0,0.7876443]
[1754505313789,0.69007138,115590.0,115580.0,0.7443881]
[1754505316700,0.69007138,115590.0,115580.0,1.16902588]
[1754505320692,0.69007138,115590.0,115580.0,0.7443881]
[1754505320894,0.2654336,115590.0,115580.0,1.16902588]
[1754505321098,0.69007138,115590.0,115580.0,1.16902588]
[1754505321501,0.69007138,115590.0,115580.0,0.7443881]
[1754505322000,0.69007138,115590.0,115580.0,0.6573481]
[1754505322201,0.2654336,115590.0,115580.0,0.7400181]
[1754505322502,0.69007138,115590.0,115580.0,0.7400181]
[1754505323000,0.69007138,115590.0,115580.0,0.7370181]
[1754505323501,0.69007138,115590.0,115580.0,0.6203281]
[1754505323697,0.69007138,115590.0,115580.0,0.7360081]
[1754505324796,0.69007138,115590.0,115580.0,1.16064588]
[1754505326302,0.66847138,115590.0,115580.0,1.16064588]
[1754505327003,0.69007138,115590.0,115580.0,0.7360081]
[1754505329294,0.66847138,115590.0,115580.0,0.5770723]
[1754505329498,0.69007138,115590.0,115580.0,0.6927523]
[1754505331203,1.11470916,115590.0,115580.0,0.2887079]
[1754505332599,0.69007138,115590.0,115580.0,0.2887079]
[1754505332795,0.2654336,115590.0,115580.0,0.2887079]
[1754505332996,0.69007138,115590.0,115580.0,0.2887079]
[1754505337002,0.69007138,115590.0,115580.0,0.71334568]
[1754505337402,0.2654336,115590.0,115580.0,0.71334568]
[1754505337602,0.69007138,115590.0,115580.0,0.71334568]
[1754505338106,0.66847138,115590.0,115580.0,0.71334568]
[1754505338497,0.2438336,115590.0,115580.0,0.71334568]
[1754505338699,0.66847138,115590.0,115580.0,0.71334568]
[1754505339404,0.66847138,115590.0,115580.0,0.2887079]
[1754505339601,0.69007138,115590.0,115580.0,0.2887079]
[1754505340106,0.2654336,115590.0,115580.0,0.2887079]
[1754505340303,0.69007138,115590.0,115580.0,0.2887079]
[1754505340904,0.2112336,115590.0,115580.0,1.07414568]
[1754505341206,0.1730129,115590.0,115580.0,1.07414568]
[1754505341411,0.79682418,115600.0,115590.0,0.2205429]
[1754505341601,0.9265335,115600.0,115590.0,1.07577068]
[1754505341799,1.35117128,115600.0,115590.0,1.07577068]
[1754505342197,1.34791128,115600.0,115590.0,1.07577068]
[1754505342397,1.35117128,115600.0,115590.0,1.07577068]
[1754505342603,1.31857128,115600.0,115590.0,1.07577068]
[1754505342998,1.34270128,115600.0,115590.0,1.07577068]
[1754505343200,1.34596128,115600.0,115590.0,1.07577068]
[1754505343698,1.34270128,115600.0,115590.0,1.07577068]
[1754505343894,1.34370128,115600.0,115590.0,1.07577068]
[1754505344099,0.5996,115600.0,115590.0,1.07577068]
[1754505344302,0.5996,115600.0,115590.0,0.6511329]
[1754505344502,0.772598,115600.0,115590.0,1.07577068]
[1754505344906,0.796728,115600.0,115590.0,1.07577068]
[1754505345102,0.62373,115600.0,115590.0,1.07577068]
[1754505346406,0.5996,115600.0,115590.0,1.07577068]
[1754505347607,0.5986,115600.0,115590.0,1.07577068]
[1754505347809,0.5976,115600.0,115590.0,1.07577068]
[1754505348603,0.5976,115600.0,115590.0,1.50040846]
[1754505356608,0.49405778,115610.0,115600.0,0.290318]
[1754505356812,1.09137778,115610.0,115600.0,1.07575578]
[1754505357216,1.02195778,115610.0,115600.0,1.07575578]
[1754505357415,0.59732,115610.0,115600.0,1.07575578]
[1754505357618,0.66153,115610.0,115600.0,1.07575578]
[1754505357812,0.66253,115610.0,115600.0,1.07575578]
[1754505358018,0.59932,115610.0,115600.0,1.07575578]
[1754505358318,0.62345,115610.0,115600.0,1.07575578]
[1754505359116,0.66874,115610.0,115600.0,1.07575578]
[1754505359317,0.69034,115610.0,115600.0,1.07575578]
[1754505361316,0.66874,115610.0,115600.0,1.07575578]
[1754505362617,0.66874,115610.0,115600.0,0.651118]
[1754505362809,0.66774,115610.0,115600.0,1.07575578]
[1754505363010,0.66674,115610.0,115600.0,1.07575578]
[1754505364818,0.66674,115610.0,115600.0,1.43655578]
[1754505367518,0.66674,115610.0,115600.0,1.011918]
[1754505367712,0.66674,115610.0,115600.0,1.43655578]
[1754505368624,0.66646,115610.0,115600.0,1.43655578]
[1754505368814,0.6632,115610.0,115600.0,1.43655578]
[1754505369215,0.59704,115610.0,115600.0,1.43655578]
[1754505371723,0.69287985,115620.0,115610.0,0.291183]
[1754505371921,1.28987985,115620.0,115610.0,1.07662078]
[1754505372420,1.31147985,115620.0,115610.0,1.09561197]
[1754505372926,1.31247985,115620.0,115610.0,1.09561197]
[1754505373126,1.31347985,115620.0,115610.0,1.09561197]
[1754505373828,0.02766247,115620.0,115610.0,1.09561197]
[1754505374016,0.59892,115620.0,115610.0,1.09561197]
[1754505375124,0.62305,115620.0,115610.0,1.09561197]
[1754505375530,0.62105,115620.0,115610.0,1.09761197]
[1754505376325,0.62105,115620.0,115610.0,1.09861197]
[1754505377733,0.6365,115620.0,115610.0,1.09861197]
[1754505377934,0.63976,115620.0,115610.0,1.09861197]
[1754505379138,0.66132,115620.0,115610.0,1.09861197]
[1754505380135,0.66132,115620.0,115610.0,1.07962078]
[1754505380535,0.0644,115620.0,115610.0,1.07962078]
[1754505380735,0.6612,115620.0,115610.0,1.07962078]
[1754505381544,0.65794,115620.0,115610.0,1.07962078]
[1754505382544,0.6612,115620.0,115610.0,1.07962078]
[1754505382842,0.5968,115620.0,115610.0,1.07962078]
[1754505383031,0.62093,115620.0,115610.0,1.07962078]
[1754505383636,0.62093,115620.0,115610.0,1.09871403]
[1754505385144,0.62093,115620.0,115610.0,0.67407625]
[1754505385346,0.62093,115620.0,115610.0,1.09871403]
[1754505385644,0.63964,115620.0,115610.0,1.09871403]
[1754505392649,0.63638,115620.0,115610.0,1.09871403]
[1754505392948,0.63964,115620.0,115610.0,1.09871403]
[1754505393150,0.66641,115620.0,115610.0,1.09871403]
[1754505400358,0.63638,115620.0,115610.0,1.09871403]
[1754505400849,0.63964,115620.0,115610.0,1.09871403]
[1754505403368,0.63638,115620.0,115610.0,1.11843387]
[1754505403550,0.06296643,115630.0,115620.0,0.267778]
[1754505403756,0.63644,115630.0,115620.0,1.50144356]
[1754505404062,0.59632,115630.0,115620.0,1.50144356]
[1754505404363,0.62045,115630.0,115620.0,1.50144356]
[1754505404564,0.59632,115630.0,115620.0,1.50144356]
[1754505404958,0.62045,115630.0,115620.0,1.50144356]
[1754505405359,0.6397,115630.0,115620.0,1.50144356]
[1754505406761,0.6397,115630.0,115620.0,1.50244356]
[1754505407066,0.63644,115630.0,115620.0,1.50444356]
[1754505412467,0.63624,115630.0,115620.0,1.50444356]
[1754505414964,0.6362,115630.0,115620.0,1.50444356]
[1754505417470,0.63616,115630.0,115620.0,1.50444356]
[1754505417964,0.09169015,115640.0,115630.0,0.2194731]
[1754505418160,0.66458,115640.0,115630.0,0.6521531]
[1754505418365,0.66458,115640.0,115630.0,1.07679088]
[1754505418770,0.06858,115640.0,115630.0,1.07679088]
[1754505418965,0.06858,115640.0,115630.0,1.67279088]
[1754505418966,0.06337,115640.0,115630.0,1.67279088]
[1754505419166,0.04012,115640.0,115630.0,1.6917429]
[1754505419361,0.01599,115640.0,115630.0,1.6917429]
[1754505419566,0.66784,115650.0,115640.0,0.2913381]
[1754505419866,0.68944,115650.0,115640.0,1.07677588]
[1754505420369,1.28700088,115650.0,115640.0,0.6521381]
[1754505420871,1.11507778,115650.0,115640.0,1.07677588]
[1754505421072,1.13489515,115650.0,115640.0,1.07677588]
[1754505421473,1.13389515,115650.0,115640.0,1.07677588]
[1754505422574,1.13489515,115650.0,115640.0,1.07677588]
[1754505422977,1.13389515,115650.0,115640.0,1.07677588]
[1754505424476,0.70925737,115650.0,115640.0,1.07677588]
[1754505424773,1.13389515,115650.0,115640.0,1.07677588]
[1754505425274,0.70925737,115650.0,115640.0,1.07677588]
[1754505425477,1.13389515,115650.0,115640.0,1.07677588]
[1754505426478,1.13389515,115650.0,115640.0,0.6521381]
[1754505426870,1.13389515,115650.0,115640.0,1.07677588]
[1754505427071,0.70925737,115650.0,115640.0,1.07677588]
[1754505427367,1.13389515,115650.0,115640.0,1.07677588]
[1754505428682,1.13389515,115650.0,115640.0,0.6521381]
[1754505428978,0.70925737,115650.0,115640.0,1.07677588]
[1754505429167,1.13389515,115650.0,115640.0,1.07677588]
[1754505431281,2.03121623,115650.0,115640.0,0.3608]
[1754505431475,0.1894532,115630.0,115620.0,0.6202476]
[1754505431680,0.8626932,115630.0,115620.0,0.1964046]
[1754505431880,1.28733098,115630.0,115620.0,0.1964046]
[1754505432582,1.28833098,115630.0,115620.0,0.1964046]
[1754505437386,1.64913098,115630.0,115620.0,0.1964046]
[1754505438076,0.2256273,115620.0,115610.0,0.70852283]
[1754505438281,1.11626286,115620.0,115610.0,0.23530725]
[1754505438479,1.47706286,115620.0,115610.0,0.19206375]
[1754505439183,1.47706286,115620.0,115610.0,0.19406375]
[1754505440488,1.47706286,115620.0,115610.0,0.21750375]
[1754505440690,1.0051136,115620.0,115610.0,0.21750375]
[1754505445395,1.0051136,115620.0,115610.0,0.27332375]
[1754505446293,0.6443136,115620.0,115610.0,0.27332375]
[1754505446996,0.2669873,115620.0,115610.0,0.27332375]
[1754505447187,0.6443136,115620.0,115610.0,0.27332375]
[1754505447990,0.6443136,115620.0,115610.0,0.28922375]
[1754505450098,1.0051136,115620.0,115610.0,0.05044]
[1754505450298,1.0051136,115620.0,115610.0,0.02544]
[1754505451299,1.0051136,115620.0,115610.0,0.002]
[1754505457615,1.0051136,115620.0,115610.0,0.002]
[1754505459115,1.07508065,115620.0,115610.0,0.002]
[1754505461310,0.71428065,115620.0,115610.0,0.1749814]
[1754505461614,0.71428065,115620.0,115610.0,0.1225]
[1754505461815,1.07508065,115620.0,115610.0,0.1225]
[1754505462116,1.07508065,115620.0,115610.0,0.07355]
[1754505462316,1.07508065,115620.0,115610.0,0.03515]
[1754505462619,1.54673535,115620.0,115610.0,0.0256]
[1754505463116,1.18593535,115620.0,115610.0,0.1985814]
[1754505464618,1.18593535,115620.0,115610.0,0.0256]
[1754505465622,1.18593535,115620.0,115610.0,0.1985814]
[1754505467424,1.18593535,115620.0,115610.0,0.1985813]
[1754505467623,1.18593535,115620.0,115610.0,0.2465313]
[1754505467823,1.18593535,115620.0,115610.0,0.1225]
[1754505468723,1.18593535,115620.0,115610.0,0.2954814]
[1754505469918,1.18593535,115620.0,115610.0,0.1225]
[1754505470122,1.18593535,115620.0,115610.0,0.07355]
[1754505470621,1.54673535,115620.0,115610.0,0.03515]
[1754505470817,1.54673535,115620.0,115610.0,0.002]
[1754505471018,0.03819,115600.0,115590.0,0.5827589]
[1754505471322,1.2852769,115600.0,115590.0,0.07155]
[1754505471523,1.2852769,115600.0,115590.0,0.2445613]
[1754505471725,1.2852769,115600.0,115590.0,0.6543113]
[1754505472420,1.2852769,115600.0,115590.0,0.2935113]
[1754505473017,1.2852769,115600.0,115590.0,0.1825613]
[1754505473217,1.66354322,115600.0,115590.0,0.1760113]
[1754505473417,1.66354322,115600.0,115590.0,0.2016113]
[1754505473620,1.66354322,115600.0,115590.0,0.2111613]
[1754505473820,1.66354322,115600.0,115590.0,0.2601113]
[1754505475631,1.66354322,115600.0,115590.0,0.2111613]
[1754505476129,0.2654014,115590.0,115580.0,0.2935139]
[1754505476324,1.1143824,115590.0,115580.0,0.2935139]
[1754505476629,0.6898919,115590.0,115580.0,0.2935139]
[1754505477324,0.2654014,115590.0,115580.0,0.2985139]
[1754505477523,0.6898919,115590.0,115580.0,0.3015139]
[1754505477918,0.6898919,115590.0,115580.0,0.1285]
[1754505478128,1.4751824,115590.0,115580.0,0.0296]
[1754505478431,1.4751824,115590.0,115580.0,0.006]
[1754505479227,1.4751824,115590.0,115580.0,0.002]
[1754505480033,1.4781824,115590.0,115580.0,0.001]
[1754505480227,1.4781824,115590.0,115570.0,0.07255]
[1754505480228,0.2164261,115580.0,115570.0,0.0821]
[1754505480427,1.6460666,115580.0,115570.0,0.03315]
[1754505480731,1.59919667,115580.0,115570.0,0.03315]
[1754505481124,1.59919667,115580.0,115570.0,0.0821]
[1754505481525,1.60119667,115580.0,115570.0,0.09718]
[1754505482227,0.2654311,115570.0,115560.0,0.1205]
[1754505482425,1.00385167,115570.0,115560.0,0.07155]
[1754505482620,1.00385167,115570.0,115560.0,0.1205]
[1754505482821,1.00385167,115570.0,115560.0,0.07155]
[1754505483123,1.00385167,115570.0,115560.0,0.04823]
[1754505483332,1.00385167,115570.0,115560.0,0.04923]
[1754505483533,1.00385167,115570.0,115560.0,0.03415]
[1754505486535,1.00385167,115570.0,115560.0,0.001]
[1754505486838,1.00385167,115570.0,115560.0,0.0246]
[1754505490038,0.8607511,115570.0,115560.0,0.6562761]
[1754505490336,0.8391511,115570.0,115560.0,0.6562761]
[1754505492538,0.2438311,115570.0,115560.0,0.6562761]
[1754505492746,0.7847511,115570.0,115560.0,1.03389667]
[1754505492932,0.8088811,115570.0,115560.0,1.03389667]
[1754505493130,0.8406511,115570.0,115560.0,0.6562761]
[1754505493939,0.2453711,115570.0,115560.0,0.6562761]
[1754505494240,0.8406511,115570.0,115560.0,0.6562761]
[1754505494737,0.66761,115570.0,115560.0,0.6562761]
[1754505494937,0.66435,115570.0,115560.0,0.6562761]
[1754505495139,0.63584,115570.0,115560.0,0.6562761]
[1754505495338,0.2115191,115580.0,115570.0,0.292351]
[1754505495641,0.8341891,115580.0,115570.0,0.653151]
[1754505495833,0.8393991,115580.0,115570.0,0.653151]
[1754505496339,0.2441191,115580.0,115570.0,0.653151]
[1754505496641,0.8413591,115580.0,115570.0,0.653151]
[1754505502637,0.8629591,115580.0,115570.0,0.653151]
[1754505502837,1.24057967,115580.0,115570.0,0.653151]
[1754505503742,1.24057967,115580.0,115570.0,0.11931]
[1754505503945,0.2657206,115570.0,115560.0,0.6964141]
[1754505504245,0.64334117,115570.0,115560.0,0.6483941]
[1754505504443,0.64334117,115570.0,115560.0,0.6964141]
[1754505505839,0.64334117,115570.0,115560.0,0.6974141]
[1754505506038,0.2657206,115570.0,115560.0,0.6974141]
[1754505506239,0.64334117,115570.0,115560.0,0.6974141]
[1754505507548,0.64334117,115570.0,115560.0,0.3366141]
[1754505507740,0.64334117,115570.0,115560.0,0.2453334]
[1754505507941,0.64334117,115570.0,115560.0,0.2933534]
[1754505516659,0.6265206,115570.0,115560.0,0.07229]
[1754505516953,1.00414117,115570.0,115560.0,0.07229]
[1754505517656,1.00414117,115570.0,115560.0,0.001]
[1754505517953,1.00414117,115570.0,115560.0,0.02596]
[1754505520359,1.00414117,115570.0,115560.0,0.001]
[1754505520561,0.2661201,115550.0,115540.0,0.6534116]
[1754505520750,1.23862067,115550.0,115540.0,0.11954]
[1754505520951,1.23862067,115550.0,115540.0,0.2926251]
[1754505521763,1.23862067,115550.0,115540.0,0.2946251]
[1754505521955,1.23862067,115550.0,115540.0,0.2976251]
[1754505523658,1.25424374,115550.0,115540.0,0.2976251]
[1754505524252,1.25424374,115550.0,115540.0,0.6584251]
[1754505524959,0.87662317,115550.0,115540.0,0.6584251]
[1754505525658,0.85176317,115550.0,115540.0,0.6584251]
[1754505526054,0.85502317,115550.0,115540.0,0.6584251]
[1754505529161,0.87662317,115550.0,115540.0,0.6584251]
[1754505530555,0.85502317,115550.0,115540.0,0.6584251]
[1754505532764,0.3959144,115560.0,115550.0,0.2926102]
[1754505532958,0.9907544,115560.0,115550.0,0.6534102]
[1754505533864,1.36837497,115560.0,115550.0,0.48034]
[1754505534054,1.36837497,115560.0,115550.0,0.6544102]
[1754505534257,1.36837497,115560.0,115550.0,0.6564102]
[1754505536156,1.36837497,115560.0,115550.0,0.5368702]
[1754505536362,1.38385942,115560.0,115550.0,0.5606802]
[1754505536665,1.38385942,115560.0,115550.0,0.6564102]
[1754505539165,0.78901942,115560.0,115550.0,0.6564102]
[1754505539368,1.00615885,115560.0,115550.0,0.6564102]
[1754505543467,1.38377942,115560.0,115550.0,0.6564102]
[1754505551470,0.78901942,115560.0,115550.0,0.6564102]
[1754505551660,1.38361942,115560.0,115550.0,0.6564102]
[1754505556466,1.38353942,115560.0,115550.0,0.6564102]
[1754505556668,1.43081295,115560.0,115550.0,0.6564102]
[1754505557960,1.85570705,115560.0,115550.0,0.6564102]
[1754505558773,1.43081295,115560.0,115550.0,0.6564102]
[1754505559076,1.43081295,115560.0,115550.0,0.6563702]
[1754505559375,1.43081295,115560.0,115550.0,0.4833]
[1754505560174,1.85570705,115560.0,115550.0,0.4833]
[1754505560976,1.85570705,115560.0,115550.0,0.003]
[1754505561167,2.21650705,115560.0,115550.0,0.02614]
[1754505561672,2.21650705,115560.0,115550.0,0.003]
[1754505562780,2.12232583,115560.0,115550.0,0.003]
[1754505563975,2.12232583,115560.0,115530.0,0.82046132]
[1754505563976,0.2610449,115540.0,115530.0,0.89702642]
[1754505564177,1.23328839,115540.0,115530.0,0.89702642]
[1754505564373,0.8554849,115540.0,115530.0,0.89702642]
[1754505565172,0.8554849,115540.0,115530.0,0.90002642]
[1754505566375,0.8554849,115540.0,115530.0,0.90302642]
[1754505566979,0.8554849,115540.0,115530.0,0.88374919]
[1754505567275,2.3554849,115540.0,115530.0,0.55542909]
[1754505567972,2.3554849,115540.0,115530.0,0.43558909]
[1754505568301,2.73328839,115540.0,115530.0,0.45872909]
[1754505568774,2.73328839,115540.0,115530.0,0.02914]
[1754505568976,0.2610599,115530.0,115520.0,0.1962549]
[1754505569171,0.63886339,115530.0,115520.0,0.04878]
[1754505569478,0.63886339,115530.0,115520.0,0.48064]
[1754505570376,0.63886339,115530.0,115520.0,0.48564]
[1754505570678,0.63886339,115530.0,115520.0,0.48864]
[1754505571380,0.63886339,115530.0,115520.0,0.008]
[1754505571879,0.99966339,115530.0,115520.0,0.03114]
[1754505573987,0.99966339,115530.0,115520.0,0.008]
[1754505574284,0.2610749,115520.0,115510.0,0.13904838]
[1754505574476,1.23323839,115520.0,115510.0,0.13896838]
[1754505574878,1.23323839,115520.0,115510.0,0.11976]
[1754505575688,1.23323839,115520.0,115510.0,0.07472]
[1754505576192,1.23523839,115520.0,115510.0,0.07172]
[1754505576486,1.23523839,115520.0,115510.0,0.12284]
[1754505577071,1.23523839,115520.0,115510.0,0.003]
[1754505577277,1.59603839,115520.0,115510.0,0.02314]
[1754505577681,0.2612986,115510.0,115500.0,0.48064]
[1754505577885,0.63910209,115510.0,115500.0,0.6537836]
[1754505578781,0.64210209,115510.0,115500.0,0.6537836]
[1754505579785,0.63910209,115510.0,115500.0,0.6547836]
[1754505579981,0.64310209,115510.0,115500.0,0.6557836]
[1754505580480,0.65715762,115510.0,115500.0,0.6547836]
[1754505580684,0.65715762,115510.0,115500.0,0.48164]
[1754505580880,0.27935413,115510.0,115500.0,0.48164]
[1754505582988,0.65715762,115510.0,115500.0,0.48164]
[1754505583787,0.27935413,115510.0,115500.0,0.48164]
[1754505583989,0.65715762,115510.0,115500.0,0.48164]
[1754505588492,0.65715762,115510.0,115500.0,0.6547842]
[1754505589189,0.65715762,115510.0,115500.0,0.6546642]
[1754505590192,0.65715762,115510.0,115500.0,0.48152]
[1754505590381,0.65715762,115510.0,115500.0,0.3618]
[1754505590584,0.65715762,115510.0,115500.0,0.44502]
[1754505590784,0.70461756,115510.0,115500.0,0.47848]
[1754505596494,0.70461756,115510.0,115500.0,0.11768]
[1754505597791,1.06541756,115510.0,115500.0,0.11768]
[1754505598892,1.06141756,115510.0,115500.0,0.11668]
[1754505599096,1.06341756,115510.0,115500.0,0.11668]
[1754505599496,1.06441756,115510.0,115500.0,0.11668]
[1754505600496,0.70361756,115510.0,115500.0,0.6506224]
[1754505600689,0.61544756,115510.0,115500.0,1.07588583]
[1754505601793,1.20964756,115510.0,115500.0,1.07588583]
[1754505601993,0.19018413,115510.0,115500.0,0.6506224]
[1754505602196,0.7703286,115510.0,115500.0,1.50114926]
[1754505602395,0.7702886,115510.0,115500.0,1.50114926]
[1754505602788,0.7702886,115510.0,115500.0,1.02845891]
[1754505605293,0.003,115510.0,115500.0,1.02845891]
[1754505605498,0.7702877,115510.0,115500.0,1.02845891]
[1754505606504,0.1761277,115510.0,115500.0,1.02845891]
[1754505606803,0.7702477,115510.0,115500.0,1.02845891]
[1754505607508,0.7702477,115510.0,115500.0,0.6506224]
[1754505607697,0.7702477,115510.0,115500.0,1.02845891]
[1754505607899,0.7702477,115510.0,115500.0,1.18367921]
[1754505608602,0.59712,115510.0,115500.0,1.18367921]
[1754505609106,0.7702477,115510.0,115500.0,1.18367921]
[1754505610199,0.7702477,115510.0,115500.0,1.02845891]
[1754505611300,0.1761277,115510.0,115500.0,1.02845891]
[1754505611496,0.7702077,115510.0,115500.0,1.02845891]
[1754505611703,0.1761277,115510.0,115500.0,1.02845891]
[1754505611906,0.003,115510.0,115500.0,1.65683121]
[1754505612108,0.1761277,115510.0,115500.0,1.65683121]
[1754505612605,0.62231421,115510.0,115500.0,0.6489527]
[1754505612803,1.23795421,115510.0,115500.0,0.47581]
[1754505614508,1.23795421,115510.0,115500.0,0.03238]
[1754505614711,0.2630927,115500.0,115490.0,0.50292432]
[1754505614901,0.64092921,115500.0,115490.0,0.54932432]
[1754505615711,0.64092921,115500.0,115490.0,0.47914]
[1754505616205,0.64092921,115500.0,115490.0,0.48014]
[1754505616409,0.64092921,115500.0,115490.0,0.07294]
[1754505617716,0.64192921,115500.0,115490.0,0.07294]
[1754505618005,0.64192921,115500.0,115490.0,0.0252]
[1754505618214,0.64192921,115500.0,115490.0,0.001]
[1754505618399,0.2631077,115490.0,115480.0,0.72032788]
[1754505618607,1.23498421,115490.0,115480.0,0.54715548]
[1754505619212,0.8571477,115490.0,115480.0,0.72032808]
[1754505619710,1.23498421,115490.0,115480.0,0.72132808]
[1754505620302,1.21338421,115490.0,115480.0,0.6533126]
[1754505620507,1.23498421,115490.0,115480.0,0.6069126]
[1754505620705,1.23498421,115490.0,115480.0,0.6533126]
[1754505623112,1.23498421,115490.0,115480.0,0.48014]
[1754505624114,1.23498421,115490.0,115480.0,0.43374]
[1754505624412,1.23498421,115490.0,115480.0,0.39536]
[1754505624607,1.23498421,115490.0,115480.0,0.001]
[1754505624814,1.59578421,115490.0,115480.0,0.001]
[1754505630313,1.59578421,115490.0,115480.0,0.0252]
[1754505631915,1.59578421,115490.0,115480.0,0.001]
[1754505634327,1.59578421,115490.0,115480.0,0.00096]
[1754505635622,1.59578421,115490.0,115480.0,0.02516]
[1754505635819,1.23498421,115490.0,115480.0,0.38596]
[1754505637924,1.23498421,115490.0,115480.0,0.02516]
[1754505641228,1.59578421,115490.0,115480.0,0.02516]
[1754505641835,1.59578421,115490.0,115480.0,0.00096]
[1754505645820,0.236527,115470.0,115460.0,0.06955]
[1754505646016,1.23350351,115470.0,115460.0,0.11556]
[1754505647116,1.24784866,115470.0,115460.0,0.07155]
[1754505647520,1.24884866,115470.0,115460.0,0.07555]
[1754505650022,1.24884866,115470.0,115460.0,0.006]
[1754505650624,1.24884866,115470.0,115460.0,0.02895]
[1754505650819,1.24884866,115470.0,115460.0,0.006]
[1754505651419,1.60964866,115470.0,115460.0,0.006]
[1754505651632,1.23181215,115470.0,115460.0,0.006]
[1754505651834,1.60964866,115470.0,115460.0,0.006]
[1754505654627,0.1732162,115450.0,115440.0,0.71372863]
[1754505654822,0.8568162,115450.0,115440.0,0.11556]
[1754505655029,1.23465271,115450.0,115440.0,0.11556]
[1754505655730,1.23465271,115450.0,115440.0,0.06955]
[1754505656127,0.1732312,115440.0,115430.0,0.4142]
[1754505656334,0.63934771,115440.0,115430.0,0.6496062]
[1754505656633,0.63034771,115440.0,115430.0,0.6496062]
[1754505656838,0.63034771,115440.0,115430.0,0.6496063]
[1754505657327,0.63134771,115440.0,115430.0,0.6506063]
[1754505660135,0.63134771,115440.0,115430.0,0.3618]
[1754505660328,0.63134771,115440.0,115430.0,0.08423]
[1754505660533,0.63134771,115440.0,115430.0,0.11656]
[1754505661336,0.63034771,115440.0,115430.0,0.11556]
[1754505661539,0.63834771,115440.0,115430.0,0.11656]
[1754505661738,0.64134771,115440.0,115430.0,0.11756]
[1754505662241,0.64134771,115440.0,115430.0,0.02495]
[1754505664346,0.64134771,115440.0,115430.0,0.06646]
[1754505664642,0.64134771,115440.0,115430.0,0.08014]
[1754505664944,0.64134771,115440.0,115430.0,0.09641]
[1754505665145,0.2635112,115440.0,115430.0,0.11748]
[1754505665346,0.64134771,115440.0,115430.0,0.2907263]
[1754505665644,1.21686771,115440.0,115430.0,0.6515263]
[1754505666245,1.21348771,115440.0,115430.0,0.6515263]
[1754505666542,1.21682771,115440.0,115430.0,0.6515263]
[1754505666933,0.61974771,115440.0,115430.0,0.6515263]
[1754505667137,1.21694771,115440.0,115430.0,0.6515263]
[1754505667536,1.23854771,115440.0,115430.0,0.6515263]
[1754505668648,1.18701771,115440.0,115430.0,0.6515263]
[1754505668846,1.19035771,115440.0,115430.0,0.6515263]
[1754505669047,1.21674771,115440.0,115430.0,0.6515263]
[1754505669746,1.23834771,115440.0,115430.0,0.6515263]
[1754505670048,1.23834771,115440.0,115430.0,0.47828]
[1754505670445,1.23834771,115440.0,115430.0,0.00192]
[1754505670750,1.23834771,115440.0,115430.0,0.0258]
[1754505670945,1.97698422,115440.0,115430.0,0.00192]
[1754505671249,1.2213112,115440.0,115430.0,0.00192]
[1754505671644,1.97698422,115440.0,115430.0,0.00192]
[1754505672638,1.61618422,115440.0,115430.0,0.00192]